fUSD/lending_fUSD_20240212
["ID","MTS","AMOUNT","RATE_DAILY","PERIOD"]
[313852139,1707753697587,500.0,0.00022899,2]
[313852140,1707753698166,252.13189049,0.00022899,2]
[313852141,1707753698607,150.0,0.00022885,2]
[313852142,1707753699508,500.0,0.00022899,2]
[313852143,1707753700077,600.65,0.00022899,2]
[313852144,1707753700115,500.0,0.00022899,2]
[313852145,1707753700440,538.45,0.00022899,2]
[313852146,1707753700480,500.0,0.00022899,2]
[313852147,1707753701491,500.0,0.00022899,2]
[313852148,1707753702251,500.0,0.00022899,2]
[313852149,1707753703326,25185.89,0.00022826,2]
[313852150,1707753704789,500.0,0.00022899,2]
[313852151,1707753704904,500.0,0.00022899,2]
[313852152,1707753706989,500.0,0.00022899,2]
[313852153,1707753707666,500.0,0.00022899,2]
[313852154,1707753707949,500.0,0.00022899,2]
[313852155,1707753710482,500.0,0.00022899,2]
[313852156,1707753710701,500.0,0.00022899,2]
[313852157,1707753710737,500.0,0.00022899,2]
[313852158,1707753710783,500.0,0.00022899,2]
[313852159,1707753711582,500.0,0.00022899,2]
[313852160,1707753712043,555.51,0.00022899,2]
[313852161,1707753714981,569.61319656,0.00022899,2]
[313852162,1707753715216,500.0,0.00022899,2]
[313852163,1707753715536,500.0,0.00022899,2]
[313852164,1707753717547,500.0,0.00022899,2]
[313852165,1707753717641,500.0,0.00022899,2]
[313852166,1707753719504,521.25,0.00022899,2]
[313852167,1707753720403,500.0,0.00022899,2]
[313852168,1707753720432,250.0,0.00022858,2]
[313852169,1707753720469,500.0,0.00022899,2]
[313852170,1707753721892,500.0,0.00022899,2]
[313852171,1707753723577,500.0,0.00022899,2]
[313852172,1707753724583,500.0,0.00022899,2]
[313852173,1707753726785,500.0,0.00022899,2]
[313852174,1707753726855,500.0,0.00022899,2]
[313852175,1707753727041,500.0,0.00022899,2]
[313852176,1707753727670,500.0,0.00022899,2]
[313852177,1707753727701,500.0,0.00022899,2]
[313852178,1707753728784,500.0,0.00022899,2]
[313852179,1707753729345,500.0,0.00022899,2]
[313852180,1707753731999,500.0,0.00022899,2]
[313852181,1707753732108,-5057.90674504,0.00023007,2]
[313852182,1707753732130,-3045.88772392,0.00023007,2]
[313852183,1707753732152,-775.53574364,0.00023008,2]
[313852184,1707753732174,-339.47556128,0.00023009,2]
[313852185,1707753732196,-4867.89255788,0.0002301,2]
[313852186,1707753732321,500.0,0.00022899,2]
[313852187,1707753732418,500.0,0.00022899,2]
[313852188,1707753732511,703.32,0.00022899,2]
[313852189,1707753734200,500.0,0.00022899,2]
[313852190,1707753734962,500.0,0.00022899,2]
[313852191,1707753735713,4867.89255788,0.00022898,2]
[313852192,1707753736215,1000.0,0.000227,2]
[313852193,1707753737035,500.0,0.00022899,2]
[313852194,1707753737063,500.0,0.00022899,2]
[313852195,1707753737133,500.0,0.00022899,2]
[313852196,1707753737740,606.70409862,0.00022899,2]
[313852197,1707753738283,965.75,0.00022899,2]
[313852198,1707753739498,500.0,0.00022899,2]
[313852199,1707753742267,500.0,0.00022899,2]
[313852200,1707753742415,500.0,0.00022899,2]
[313852201,1707753742504,500.0,0.00022899,2]
[313852202,1707753742788,500.0,0.00022899,2]
[313852203,1707753743152,572.36,0.00022899,2]
[313852204,1707753744792,500.0,0.00022899,2]
[313852205,1707753747512,500.0,0.00022899,2]
[313852206,1707753747608,567.16,0.00022899,2]
[313852207,1707753751195,567.43,0.00022899,2]
[313852208,1707753751847,1287.49,0.00022899,2]
[313852209,1707753753471,500.0,0.00022899,2]
[313852210,1707753754171,821.82,0.00022899,2]
[313852211,1707753754852,1057.87,0.00022899,2]
[313852212,1707753755127,13008.3998,0.00022444,2]
[313852213,1707753755180,1145.1,0.00022899,2]
[313852214,1707753755505,500.0,0.00022899,2]
[313852215,1707753757849,646.15,0.00022899,2]
[313852216,1707753760378,500.0,0.00022899,2]
[313852217,1707753762233,2089.17,0.00022899,2]
[313852218,1707753763034,500.0,0.00022899,2]
[313852219,1707753763444,500.0,0.00022899,2]
[313852220,1707753764409,1331.12,0.00022899,2]
[313852221,1707753766198,626.29,0.00022899,2]
[313852222,1707753767164,500.0,0.00022899,2]
[313852223,1707753768191,511.51671473,0.00022899,2]
[313852224,1707753768245,500.0,0.00022899,2]
[313852225,1707753768272,48.19849701,0.00022899,2]
[313852226,1707753768296,451.80150299,0.00022899,2]
[313852227,1707753769982,500.0,0.00022899,2]
[313852228,1707753770375,500.0,0.00022899,2]
[313852229,1707753771008,500.0,0.00022899,2]
[313852230,1707753772030,500.0,0.00022899,2]
[313852231,1707753772625,500.0,0.00022899,2]
[313852232,1707753774121,518.31,0.00022899,2]
[313852233,1707753775132,528.8880488,0.00022899,2]
[313852234,1707753777401,500.0,0.00022899,2]
[313852235,1707753778111,500.0,0.00022899,2]
[313852236,1707753778533,500.0,0.00022899,2]
[313852237,1707753778569,500.0,0.00022899,2]
[313852238,1707753779249,152.71290326,0.00022899,2]
[313852239,1707753779361,500.0,0.00022899,2]
[313852240,1707753779942,500.0,0.00022899,2]
[313852241,1707753780213,500.0,0.00022899,2]
[313852242,1707753783121,500.0,0.00022899,2]
[313852243,1707753784173,500.0,0.00022899,2]
[313852244,1707753785065,500.0,0.00022899,2]
[313852245,1707753786612,500.0,0.00022899,2]
[313852246,1707753786900,500.0,0.00022899,2]
[313852247,1707753787019,500.0,0.00022899,2]
[313852248,1707753787362,500.0,0.00022899,2]
[313852249,1707753789061,589.99,0.00022899,2]
[313852250,1707753790131,327.96,0.00022989,2]
[313852251,1707753790273,500.0,0.00022899,2]
[313852252,1707753791299,501.3629,0.00022697,2]
[313852253,1707753791413,500.0,0.00022899,2]
[313852254,1707753791863,500.0,0.00022899,2]
[313852255,1707753792294,500.0,0.00022899,2]
[313852256,1707753792406,500.0,0.00022899,2]
[313852257,1707753792520,500.0,0.00022899,2]
[313852258,1707753794705,500.0,0.00022899,2]
[313852259,1707753795169,533.62,0.00022899,2]
[313852260,1707753797047,1189.41,0.00022899,2]
[313852261,1707753797110,500.0,0.00022899,2]
[313852262,1707753797694,500.0,0.00022899,2]
[313852263,1707753798427,500.0,0.00022899,2]
[313852264,1707753799558,500.0,0.00022899,2]
[313852265,1707753800856,500.0,0.00022899,2]
[313852266,1707753803034,161.77972462,0.00022913,2]
[313852267,1707753804567,500.0,0.00022899,2]
[313852268,1707753804961,500.0,0.00022899,2]
[313852269,1707753806089,500.0,0.00022899,2]
[313852270,1707753806646,697.43,0.00022899,2]
[313852271,1707753806725,500.0,0.00022899,2]
[313852272,1707753806867,500.0,0.00022899,2]
[313852273,1707753807078,500.0,0.00022899,2]
[313852274,1707753807325,500.0,0.00022899,2]
[313852275,1707753807859,500.0,0.00022899,2]
[313852276,1707753809455,500.0,0.00022899,2]
[313852277,1707753811416,500.0,0.00022899,2]
[313852278,1707753812196,500.0,0.00022899,2]
[313852279,1707753812394,251.54,0.00023,2]
[313852280,1707753812428,500.0,0.00022899,2]
[313852281,1707753813873,500.0,0.00022899,2]
[313852282,1707753814693,500.0,0.00022899,2]
[313852283,1707753816396,500.0,0.00022899,2]
[313852284,1707753817338,500.0,0.00022899,2]
[313852285,1707753818550,504.92,0.00022899,2]
[313852286,1707753818869,500.0,0.00022899,2]
[313852287,1707753819662,500.0,0.00022899,2]
[313852288,1707753820785,525.50481565,0.00022899,2]
[313852289,1707753821020,500.0,0.00022899,2]
[313852290,1707753821720,500.0,0.00022899,2]
[313852291,1707753821833,500.0,0.00022899,2]
[313852292,1707753823061,500.0,0.00022899,2]
[313852293,1707753824233,500.0,0.00022899,2]
[313852294,1707753824763,1404.88,0.00022899,2]
[313852295,1707753825063,500.0,0.00022899,2]
[313852296,1707753827312,500.0,0.00022899,2]
[313852297,1707753831077,160.81775495,0.00022899,2]
[313852298,1707753832197,500.0,0.00022899,2]
[313852299,1707753833021,500.0,0.00022899,2]
[313852300,1707753834142,500.0,0.00022899,2]
[313852301,1707753835109,500.0,0.00022899,2]
[313852302,1707753835678,500.0,0.00022899,2]
[313852303,1707753836325,500.0,0.00022899,2]
[313852304,1707753836750,500.0,0.00022899,2]
[313852305,1707753838193,500.0,0.00022899,2]
[313852306,1707753839424,500.0,0.00022899,2]
[313852307,1707753840640,507.73666177,0.00022899,2]
[313852308,1707753841445,674.35,0.00022899,2]
[313852309,1707753841967,500.0,0.00022899,2]
[313852310,1707753844835,500.0,0.00022899,2]
[313852311,1707753845226,500.0,0.00022899,2]
[313852312,1707753846234,518.59048189,0.00022899,2]
[313852313,1707753848571,500.0,0.00022899,2]
[313852314,1707753849334,500.0,0.00022899,2]
[313852315,1707753850017,5578.78089589,0.00017378,2]
[313852316,1707753850322,500.0,0.00022899,2]
[313852317,1707753851250,500.0,0.00022899,2]
[313852318,1707753852135,500.0,0.00022899,2]
[313852319,1707753854285,587.24,0.00022899,2]
[313852320,1707753854798,500.0,0.00022899,2]
[313852321,1707753856463,500.0,0.00022899,2]
[313852322,1707753857298,500.0,0.00022899,2]
[313852323,1707753857577,500.0,0.00022899,2]
[313852324,1707753857630,1703.42,0.00022899,2]
[313852325,1707753858600,2157.90997305,0.00022898,2]
[313852326,1707753860957,500.0,0.00022899,2]
[313852327,1707753861262,500.0,0.00022899,2]
[313852328,1707753863027,500.0,0.00022899,2]
[313852329,1707753863996,835.88,0.00022899,2]
[313852330,1707753864372,500.0,0.00022899,2]
[313852331,1707753865361,500.0,0.00022899,2]
[313852332,1707753866814,500.0,0.00022899,2]
[313852333,1707753867728,500.0,0.00022899,2]
[313852334,1707753868076,500.0,0.00022899,2]
[313852335,1707753868761,500.0,0.00022899,2]
[313852336,1707753870344,457.02,0.00022571,2]
[313852337,1707753871473,294.92184145,0.00022899,2]
[313852338,1707753872246,500.0,0.00022899,2]
[313852339,1707753873412,500.0,0.00022899,2]
[313852340,1707753874197,493.83204814,0.00022899,2]
[313852341,1707753874388,500.0,0.00022899,2]
[313852342,1707753874581,516.83827556,0.00022899,2]
[313852343,1707753874997,500.0,0.00022899,2]
[313852344,1707753876700,500.0,0.00022899,2]
[313852345,1707753878392,500.0,0.00022899,2]
[313852346,1707753880536,532.84,0.00022899,2]
[313852347,1707753882610,500.0,0.00022899,2]
[313852348,1707753882828,500.0,0.00022899,2]
[313852349,1707753884593,500.0,0.00022899,2]
[313852350,1707753884637,500.0,0.00022899,2]
[313852351,1707753885468,500.0,0.00022899,2]
[313852352,1707753886130,500.0,0.00022899,2]
[313852353,1707753887248,500.0,0.00022899,2]
[313852354,1707753887986,500.0,0.00022899,2]
[313852355,1707753889420,500.0,0.00022899,2]
[313852356,1707753889571,500.0,0.00022899,2]
[313852357,1707753890049,509.36,0.00022899,2]
[313852358,1707753890714,500.0,0.00022899,2]
[313852359,1707753891792,1624.92,0.00022899,2]
[313852360,1707753892724,500.0,0.00022899,2]
[313852361,1707753892850,649.29,0.00022899,2]
[313852362,1707753893261,500.0,0.00022899,2]
[313852363,1707753895669,500.0,0.00022899,2]
[313852364,1707753898293,500.0,0.00022899,2]
[313852365,1707753898618,500.0,0.00022899,2]
[313852366,1707753898654,500.0,0.00022899,2]
[313852367,1707753899674,500.0,0.00022899,2]
[313852368,1707753901138,1262.8216172,0.00023,2]
[313852369,1707753901938,624.65,0.00022899,2]
[313852370,1707753902531,500.0,0.00022899,2]
[313852371,1707753902797,500.0,0.00022899,2]
[313852372,1707753906042,5214.40047835,0.00023,2]
[313852373,1707753906093,272.22,0.0002262,2]
[313852374,1707753906163,500.0,0.00022899,2]
[313852375,1707753907651,500.0,0.00022899,2]
[313852376,1707753907830,500.0,0.00022899,2]
[313852377,1707753908478,500.0,0.00022899,2]
[313852378,1707753909259,500.0,0.00022899,2]
[313852379,1707753910063,500.0,0.00022899,2]
[313852380,1707753912509,500.0,0.00022899,2]
[313852381,1707753912984,496.70227817,0.00022899,2]
[313852382,1707753913021,500.0,0.00022899,2]
[313852383,1707753913415,1211.67,0.00022899,2]
[313852384,1707753913647,500.0,0.00022899,2]
[313852385,1707753914603,500.0,0.00022899,2]
[313852386,1707753916638,500.0,0.00022899,2]
[313852387,1707753917987,2793.74,0.00022899,2]
[313852388,1707753918111,646.93,0.00022899,2]
[313852389,1707753919707,500.0,0.00022899,2]
[313852390,1707753921372,221.60779423,0.00023,2]
[313852391,1707753921600,511.54,0.00022899,2]
[313852392,1707753921814,500.0,0.00022899,2]
[313852393,1707753922519,1291.66,0.00022899,2]
[313852394,1707753923445,500.0,0.00022899,2]
[313852395,1707753923504,500.0,0.00022899,2]
[313852396,1707753924206,500.0,0.00022899,2]
[313852397,1707753924271,500.0,0.00022899,2]
[313852398,1707753924947,10553.48847873,0.00023,2]
[313852399,1707753925765,501.99417376,0.00022899,2]
[313852400,1707753926992,200.32610195,0.00023,2]
[313852401,1707753929766,500.0,0.00022899,2]
[313852402,1707753930094,500.0,0.00022899,2]
[313852403,1707753930275,155.0,0.00023,2]
[313852404,1707753930961,500.0,0.00022899,2]
[313852405,1707753931411,500.0,0.00022899,2]
[313852406,1707753934152,500.0,0.00022899,2]
[313852407,1707753934315,295.58849992,0.00022899,2]
[313852408,1707753934583,500.0,0.00022899,2]
[313852409,1707753935445,514.60659493,0.00023,2]
[313852410,1707753935481,500.0,0.00022899,2]
[313852411,1707753935552,5057.90674504,0.00023,2]
[313852412,1707753936306,500.0,0.00022899,2]
[313852413,1707753937283,500.0,0.00022899,2]
[313852414,1707753937477,500.0,0.00022899,2]
[313852415,1707753937716,500.0,0.00022899,2]
[313852416,1707753937753,500.0,0.00022899,2]
[313852417,1707753937927,500.0,0.00022899,2]
[313852418,1707753939199,500.0,0.00022899,2]
[313852419,1707753939251,500.0,0.00022899,2]
[313852420,1707753940014,500.0,0.00022899,2]
[313852421,1707753940771,500.0,0.00022899,2]
[313852422,1707753941353,545.87787865,0.00022898,2]
[313852423,1707753941660,607.64,0.00022899,2]
[313852424,1707753941733,500.0,0.00022899,2]
[313852425,1707753942334,612.5,0.00022899,2]
[313852426,1707753943038,500.0,0.00022899,2]
[313852427,1707753945307,500.0,0.00022899,2]
[313852428,1707753945340,500.0,0.00022899,2]
[313852429,1707753946026,155.0,0.00023,2]
[313852430,1707753946140,500.0,0.00022899,2]
[313852431,1707753948425,500.0,0.00022899,2]
[313852432,1707753948698,500.0,0.00022899,2]
[313852433,1707753951011,500.0,0.00022899,2]
[313852434,1707753951623,500.0,0.00022899,2]
[313852435,1707753952138,389.11282684,0.00023,2]
[313852436,1707753952185,333.14776528,0.00022242,2]
[313852437,1707753953686,925.51,0.00022899,2]
[313852438,1707753954782,500.0,0.00022899,2]
[313852439,1707753955097,500.0,0.00022899,2]
[313852440,1707753955625,565.44214804,0.00022899,2]
[313852441,1707753956011,5844.94682051,0.00017377,2]
[313852442,1707753957431,500.0,0.00022899,2]
[313852443,1707753957464,500.0,0.00022899,2]
[313852444,1707753958805,500.0,0.00022899,2]
[313852445,1707753958863,500.0,0.00022899,2]
[313852446,1707753959142,500.0,0.00022899,2]
[313852447,1707753959729,500.0,0.00022899,2]
[313852448,1707753962829,500.0,0.00022899,2]
[313852449,1707753963725,645.03402855,0.00022899,2]
[313852450,1707753963781,577.90699746,0.00022899,2]
[313852451,1707753964391,500.0,0.00022899,2]
[313852452,1707753965117,787.58,0.00022899,2]
[313852453,1707753966160,500.0,0.00022899,2]
[313852454,1707753966268,500.0,0.00022899,2]
[313852455,1707753967944,185.754057,0.00022899,2]
[313852456,1707753968272,509.38600249,0.00022899,2]
[313852457,1707753969028,500.0,0.00022899,2]
[313852458,1707753970056,557.77,0.00022899,2]
[313852459,1707753970112,500.0,0.00022899,2]
[313852460,1707753972248,496.7,0.00022899,2]
[313852461,1707753972594,500.0,0.00022899,2]
[313852462,1707753973938,500.0,0.00022899,2]
[313852463,1707753974587,869.67746725,0.00022899,2]
[313852464,1707753976015,500.0,0.00022899,2]
[313852465,1707753977083,523.41321985,0.00022899,2]
[313852466,1707753979606,500.0,0.00022899,2]
[313852467,1707753980977,468.60852835,0.00022899,2]
[313852468,1707753981364,500.0,0.00022899,2]
[313852469,1707753982745,500.0,0.00022899,2]
[313852470,1707753982956,500.0,0.00022899,2]
[313852471,1707753985294,512.90376885,0.00022899,2]
[313852472,1707753985511,510.67992596,0.00022899,2]
[313852473,1707753985543,500.0,0.00022899,2]
[313852474,1707753985740,703.32,0.00022899,2]
[313852476,1707753986838,500.0,0.00022899,2]
[313852477,1707753986907,500.0,0.00022899,2]
[313852478,1707753987031,287.90161797,0.00022899,2]
[313852479,1707753987735,909.41463107,0.00022899,2]
[313852480,1707753987981,5845.97386266,0.00017377,2]
[313852481,1707753988014,4594.2461711,0.00022785,2]
[313852482,1707753988062,156.57784203,0.00022899,2]
[313852483,1707753988831,500.0,0.00022899,2]
[313852484,1707753990127,268.05165217,0.00022899,2]
[313852485,1707753990842,155.18728888,0.00022899,2]
[313852486,1707753991221,1102.30328697,0.00022899,2]
[313852488,1707753992176,500.0,0.00022899,2]
[313852489,1707753992711,155.0,0.00022899,2]
[313852490,1707753994455,6109.26214798,0.00022899,2]
[313852491,1707753994607,500.0,0.00022899,2]
[313852492,1707753994846,500.0,0.00022899,2]
[313852494,1707753995513,362.92778209,0.00022899,2]
[313852495,1707753995542,500.0,0.00022899,2]
[313852497,1707753997073,226.97466518,0.00022899,2]
[313852498,1707753997228,19047.95231035,0.00022899,2]
[313852499,1707753997261,500.0,0.00022899,2]
[313852500,1707753998180,158.63592308,0.00022899,2]
[313852501,1707753998349,500.0,0.00022899,2]
[313852502,1707753998398,500.0,0.00022899,2]
[313852503,1707753999298,539.64919489,0.00022899,2]
[313852504,1707754000689,500.0,0.00022899,2]
[313852506,1707754003234,500.0,0.00022899,2]
[313852507,1707754003367,500.0,0.00022899,2]
[313852508,1707754003518,543.79,0.00022899,2]
[313852509,1707754004850,511.39,0.00022899,2]
[313852510,1707754005871,500.0,0.00022899,2]
[313852511,1707754005989,4137.79682769,0.00017377,2]
[313852512,1707754006099,268.05165217,0.00022899,2]
[313852513,1707754007624,500.0,0.00022899,2]
[313852514,1707754008323,500.0,0.00022899,2]
[313852515,1707754008502,500.0,0.00022899,2]
[313852516,1707754008779,869.67746725,0.00022899,2]
[313852517,1707754010679,500.0,0.00022899,2]
[313852518,1707754010715,155.0,0.00022899,2]
[313852519,1707754010917,1233.84,0.00022899,2]
[313852520,1707754010958,500.0,0.00022899,2]
[313852521,1707754011458,500.0,0.00022899,2]
[313852522,1707754012478,500.0,0.00022899,2]
[313852523,1707754013448,2044.84,0.00022899,2]
[313852524,1707754014065,5057.90674504,0.00023,2]
[313852525,1707754014647,500.0,0.00022899,2]
[313852526,1707754015526,473.81915554,0.00022899,2]
[313852527,1707754017423,506.14299371,0.00022899,2]
[313852528,1707754018259,500.0,0.00022899,2]
[313852529,1707754020361,500.0,0.00022899,2]
[313852530,1707754021041,500.0,0.00022899,2]
[313852531,1707754022924,500.0,0.00022899,2]
[313852532,1707754023831,500.0,0.00022899,2]
[313852533,1707754024059,250.5,0.00022484,2]
[313852534,1707754025430,500.0,0.00022899,2]
[313852535,1707754026068,513.00111145,0.00022899,2]
[313852536,1707754027343,500.0,0.00022899,2]
[313852537,1707754028177,522.22062406,0.00022899,2]
[313852538,1707754028276,500.0,0.00022899,2]
[313852539,1707754028333,500.0,0.00022899,2]
[313852540,1707754030893,454.3787956,0.00022899,2]
[313852541,1707754032537,500.0,0.00022899,2]
[313852542,1707754032688,500.0,0.00022899,2]
[313852543,1707754032872,500.0,0.00022899,2]
[313852544,1707754033125,500.0,0.00022899,2]
[313852545,1707754033539,500.0,0.00022899,2]
[313852546,1707754035952,500.0,0.00022899,2]
[313852547,1707754036460,500.0,0.00022899,2]
[313852548,1707754037047,500.0,0.00022899,2]
[313852549,1707754037952,512.0294973,0.00022899,2]
[313852550,1707754037981,512.19573591,0.00022899,2]
[313852551,1707754038262,500.0,0.00022899,2]
[313852552,1707754039115,503.79741212,0.00022899,2]
[313852553,1707754041188,570.58,0.00022899,2]
[313852554,1707754041238,500.0,0.00022899,2]
[313852555,1707754041281,500.0,0.00022899,2]
[313852556,1707754041376,500.0,0.00022899,2]
[313852557,1707754041758,500.0,0.00022899,2]
[313852558,1707754042553,500.0,0.00022899,2]
[313852559,1707754045085,500.0,0.00022899,2]
[313852560,1707754046379,347.5835658,0.00022899,2]
[313852561,1707754046668,1139.86,0.00022899,2]
[313852562,1707754047281,500.0,0.00022899,2]
[313852563,1707754047899,500.0,0.00022899,2]
[313852564,1707754048336,500.0,0.00022899,2]
[313852565,1707754048702,500.0,0.00022899,2]
[313852566,1707754048916,500.0,0.00022899,2]
[313852567,1707754050255,775.53574364,0.00023,2]
[313852568,1707754050579,500.0,0.00022899,2]
[313852569,1707754055235,500.0,0.00022899,2]
[313852570,1707754055311,500.0,0.00022899,2]
[313852571,1707754055409,500.0,0.00022899,2]
[313852572,1707754055630,500.0,0.00022899,2]
[313852573,1707754055693,562.77,0.00022899,2]
[313852574,1707754056360,339.47556128,0.00022898,2]
[313852575,1707754056491,500.0,0.00022899,2]
[313852576,1707754056524,3045.88772392,0.00023,2]
[313852577,1707754056726,500.0,0.00022899,2]
[313852578,1707754057697,500.0,0.00022899,2]
[313852579,1707754057731,516.53932369,0.00022899,2]
[313852580,1707754057912,500.0,0.00022899,2]
[313852581,1707754058281,500.0,0.00022899,2]
[313852582,1707754058517,500.0,0.00022899,2]
[313852583,1707754059208,500.0,0.00022899,2]
[313852584,1707754059907,500.0,0.00022899,2]
[313852585,1707754060384,500.0,0.00022899,2]
[313852586,1707754060792,888.69404351,0.00022899,2]
[313852587,1707754060882,523.59887995,0.00022899,2]
[313852588,1707754061404,155.0,0.00022899,2]
[313852589,1707754061440,2989.56,0.00022506,2]
[313852590,1707754061623,540.48379102,0.00022899,2]
[313852591,1707754061775,500.0,0.00022899,2]
[313852592,1707754062368,181.56713177,0.00023,2]
[313852593,1707754064860,589.78991634,0.00022899,2]
[313852594,1707754065131,801.05,0.00022899,2]
[313852595,1707754065294,500.0,0.00022899,2]
[313852596,1707754065505,362.79646156,0.00022899,2]
[313852597,1707754066185,500.0,0.00022899,2]
[313852598,1707754066667,2863.925805,0.00022885,2]
[313852599,1707754067200,165.13149862,0.00022899,2]
[313852600,1707754067446,2987.66011144,0.00020852,5]
[313852601,1707754067616,500.0,0.00022899,2]
[313852602,1707754068272,305.0,0.00022899,2]
[313852603,1707754068511,504.72,0.00022899,2]
[313852604,1707754070354,500.0,0.00022899,2]
[313852605,1707754070613,500.0,0.00022899,2]
[313852606,1707754071924,500.0,0.00022899,2]
[313852607,1707754072185,500.0,0.00022899,2]
[313852608,1707754072661,500.0,0.00022899,2]
[313852609,1707754073216,500.0,0.00022899,2]
[313852610,1707754074328,282.56756662,0.00022899,2]
[313852611,1707754074423,282.74222937,0.00022937,2]
[313852612,1707754076407,500.0,0.00022899,2]
[313852613,1707754077103,500.0,0.00022899,2]
[313852614,1707754077139,500.0,0.00022899,2]
[313852615,1707754077394,500.0,0.00022899,2]
[313852616,1707754078203,456.70755767,0.00022899,7]
[313852617,1707754078403,860.35973908,0.00022899,2]
[313852618,1707754078837,500.0,0.00022899,2]
[313852619,1707754079388,155.0,0.00022899,2]
[313852620,1707754079421,1028.25413819,0.00022899,2]
[313852621,1707754079844,159.52,0.00022675,2]
[313852622,1707754080079,159.52,0.00022872,2]
[313852623,1707754080232,166.08656206,0.00022011,2]
[313852624,1707754080434,500.0,0.00022899,2]
[313852625,1707754080781,888.69404351,0.00022899,2]
[313852626,1707754081808,500.0,0.00022899,2]
[313852627,1707754083281,500.0,0.00022899,2]
[313852628,1707754083315,315.89242428,0.00022899,2]
[313852629,1707754085450,448.69867796,0.0002062,2]
[313852630,1707754088205,625.14615193,0.00022242,2]
[313852631,1707754089060,2514.40991524,0.0002,2]
[313852632,1707754101436,448.69867796,0.0002062,2]
[313852633,1707754102200,339.59018394,0.00022242,2]
[313852634,1707754107162,1623.45639297,0.0002,2]
[313852635,1707754107186,144.59437017,0.0002,2]
[313852636,1707754117455,448.69867796,0.0002062,2]
[313852637,1707754118384,344.95,0.00020327,2]
[313852638,1707754135011,175.74,0.00016712,2]
[313852639,1707754137446,448.69867796,0.0002062,2]
[313852640,1707754149299,888.69404351,0.00020327,2]
[313852641,1707754157446,453.80454213,0.00020378,2]
[313852642,1707754160775,200.0,0.00022217,2]
[313852643,1707754171239,250.0,0.0002219,2]